[Event "1st Cyprus Chess Tournament 2019"]
[Site "Larnaca"]
[Date "2019.10.25"]
[Round "1.4"]
[White "Deva, Atilla"]
[Black "Tilicheev, Viacheslav"]
[Result "0-1"]
[ECO "A40"]
[WhiteElo "1607"]
[BlackElo "2478"]
[Annotator "RC"]
[PlyCount "96"]
[EventDate "2019.10.25"]
[EventType "swiss"]
[EventCountry "CYP"]
[SourceTitle "playchess.com"]
[Source "ChessBase"]
[SourceQuality "1"]
[TimeControl "5400+30"]

1. d4 {[%emt 0:00:00]} g6 {[%emt 0:00:00]} 2. Bf4 {[%emt 0:00:00]} Bg7 {[%emt 0:00:00]} 3. Nc3 {[%emt 0:00:00]} d5 {[%emt 0:01:23]} 4. e3 {[%emt 0:00:00]} a6 {[%emt 0:00:22]} 5. h4 {[%emt 0:01:03]} Nf6 {[%emt 0:00:13]} 6. Be2 {[%emt 0:01:32]} h6 {[%emt 0:00:13]} 7. Nf3 {[%emt 0:00:26]} b6 {[%emt 0:04:44]} 8. Ne5 {[%emt 0:00:21]} Bb7 {[%emt 0:00:37]} 9. g4 {[%emt 0:03:52]} Nbd7 {[%emt 0:00:15]} 10. Bf3 {[%emt 0:09:29]} c5 {[%emt 0:01:25]} 11. g5 {[%emt 0:04:50]} hxg5 {[%emt 0:01:42]} 12. hxg5 {[%emt 0:00:15]} Rxh1+ {[%emt 0:00:07]} 13. Bxh1 {[%emt 0:00:05]} Ne4 {[%emt 0:00:14]} 14. Nxe4 {[%emt 0:04:09]} dxe4 {[%emt 0:00:30]} 15. Qg4 {[%emt 0:01:45]} cxd4 {[%emt 0:02:01]} 16. Nxd7 {[%emt 0:14:55]} Qxd7 {[%emt 0:00:08]} 17. Qxd7+ {[%emt 0:00:09]} Kxd7 {[%emt 0:00:04]} 18. exd4 {[%emt 0:00:03]} Rh8 {[%emt 0:01:57]} 19. Bg2 {[%emt 0:02:14]} e5 {[%emt 0:00:05]} 20. dxe5 {[%emt 0:01:01]} Ke6 {[%emt 0:00:29]} 21. O-O-O {[%emt 0:01:17]} Bxe5 {[%emt 0:00:26]} 22. Be3 {[%emt 0:00:29]} b5 {[%emt 0:03:55]} 23. Rh1 {[%emt 0:03:13]} Rxh1+ {[%emt 0:00:19]} 24. Bxh1 {[%emt 0:00:02]} Kf5 {[%emt 0:00:15]} 25. c3 {[%emt 0:00:01]} Bf4 {[%emt 0:00:17]} 26. Kd2 {[%emt 0:00:01]} Bxg5 {[%emt 0:00:18]} 27. Bg2 {[%emt 0:02:53]} Bxe3+ {[%emt 0:00:56]} 28. Kxe3 {[%emt 0:03:38]} Ke5 {[%emt 0:00:08]} 29. Bf1 {[%emt 0:03:12]} Bd5 {[%emt 0:00:32]} 30. a4 {[%emt 0:05:56]} Bc4 {[%emt 0:00:17]} 31. Bh3 {[%emt 0:00:14]} bxa4 {[%emt 0:00:31]} 32. Bd7 {[%emt 0:00:38]} Bb5 {[%emt 0:00:05]} 33. Bc8 {[%emt 0:00:13]} f5 {[%emt 0:00:06]} 34. Bb7 {[%emt 0:00:47]} g5 {[%emt 0:00:32]} 35. Bc8 {[%emt 0:00:26]} g4 {[%emt 0:00:19]} 36. Kd2 {[%emt 0:05:41]} a5 {[%emt 0:00:34]} 37. Ke1 {[%emt 0:02:12]} Kf4 {[%emt 0:00:53]} 38. Be6 {[%emt 0:00:20]} e3 {[%emt 0:09:14]} 39. fxe3+ {[%emt 0:01:28]} Kxe3 {[%emt 0:00:14]} 40. Bxf5 {[%emt 0:00:03]} g3 {[%emt 0:00:04]} 41. Bh3 {[%emt 0:00:41]} Be2 {[%emt 0:00:29]} 42. Bg2 {[%emt 0:02:06]} Bf3 {[%emt 0:00:08]} 43. Kf1 {[%emt 0:02:46]} Bxg2+ {[%emt 0:00:07]} 44. Kxg2 {[%emt 0:00:04]} Kd3 {[%emt 0:00:03]} 45. Kxg3 {[%emt 0:00:02]} a3 {[%emt 0:00:22]} 46. bxa3 {[%emt 0:00:01]} Kxc3 {[%emt 0:00:04]} 47. Kf3 {[%emt 0:00:12]} Kb3 {[%emt 0:00:05]} 48. Ke2 {[%emt 0:00:34]} Kxa3 {[%emt 0:00:05]} 0-1

[Event "1st Cyprus Chess Tournament 2019"]
[Site "Larnaca"]
[Date "2019.10.27"]
[Round "3.1"]
[White "Sumets, Andrey"]
[Black "Ivanov, Mikhail M"]
[Result "1/2-1/2"]
[ECO "C41"]
[WhiteElo "2570"]
[BlackElo "2342"]
[Annotator "ChessBase"]
[PlyCount "134"]
[EventDate "2019.10.25"]
[EventType "swiss"]
[EventCountry "CYP"]
[SourceTitle "playchess.com"]
[Source "ChessBase"]
[SourceQuality "1"]
[TimeControl "5400+30"]

1. d4 {[%emt 0:00:00]} d6 {[%emt 0:05:12]} 2. e4 {[%emt 0:00:09]} e5 {[%emt 0:00:05]} 3. Nf3 {[%emt 0:00:39]} exd4 {[%emt 0:00:17]} 4. Nxd4 {[%emt 0:00:13]} Nf6 {[%emt 0:00:06]} 5. Nc3 {[%emt 0:00:02]} Be7 {[%emt 0:00:05]} 6. g3 {[%emt 0:00:09]} Nc6 {[%emt 0:04:54]} 7. Bg2 {[%emt 0:04:45]} Nxd4 {[%emt 0:00:57]} 8. Qxd4 {[%emt 0:00:06]} O-O {[%emt 0:00:05]} 9. O-O {[%emt 0:00:08]} Be6 {[%emt 0:04:05]} 10. h3 {[%emt 0:00:28]} c6 {[%emt 0:01:37]} 11. Be3 {[%emt 0:05:30]} Nd7 {[%emt 0:12:12]} 12. f4 {[%emt 0:09:59]} f5 {[%emt 0:01:08]} 13. exf5 {[%emt 0:00:44]} Bxf5 {[%emt 0:00:05]} 14. Qd2 {[%emt 0:00:18]} Nb6 {[%emt 0:05:55]} 15. b3 {[%emt 0:01:50]} d5 {[%emt 0:00:42]} 16. g4 {[%emt 0:01:36]} Be6 {[%emt 0:03:16]} 17. Rad1 {[%emt 0:05:38]} Kh8 {[%emt 0:07:00]} 18. f5 {[%emt 0:07:34]} Bf7 {[%emt 0:00:29]} 19. Qf2 {[%emt 0:06:21]} Bh4 {[%emt 0:03:11]} 20. Qf4 {[%emt 0:01:14]} Qb8 {[%emt 0:00:36]} 21. Qb4 {[%emt 0:16:01]} Qe8 {[%emt 0:15:49]} 22. Bc5 {[%emt 0:06:54]} Rg8 {[%emt 0:00:19]} 23. Rd2 {[%emt 0:01:56]} Nd7 {[%emt 0:10:17]} 24. Re2 {[%emt 0:01:36]} Qc8 {[%emt 0:00:10]} 25. Be7 {[%emt 0:02:07]} Nf6 {[%emt 0:00:08]} 26. Bc5 {[%emt 0:06:20]} Re8 {[%emt 0:06:36]} 27. Bf2 {[%emt 0:00:38]} Bxf2+ {[%emt 0:02:52]} 28. Rfxf2 {[%emt 0:00:15]} Qd7 {[%emt 0:06:52]} 29. g5 {[%emt 0:02:12]} Rxe2 {[%emt 0:00:58]} 30. Rxe2 {[%emt 0:05:56]} Ng8 {[%emt 0:00:08]} 31. Rf2 {[%emt 0:00:57]} Bh5 {[%emt 0:04:28]} 32. Na4 {[%emt 0:02:14]} b6 {[%emt 0:01:54]} 33. Nb2 {[%emt 0:00:18]} Re8 {[%emt 0:00:18]} 34. Nd3 {[%emt 0:01:17]} d4 {[%emt 0:02:46]} 35. Nf4 {[%emt 0:03:36]} Bf7 {[%emt 0:00:18]} 36. g6 {[%emt 0:00:07]} hxg6 {[%emt 0:00:55]} 37. fxg6 {[%emt 0:00:04]} Be6 {[%emt 0:01:02]} 38. Re2 {[%emt 0:00:44]} Bf5 {[%emt 0:00:33]} 39. Rxe8 {[%emt 0:04:30]} Qxe8 {[%emt 0:00:05]} 40. Qxd4 {[%emt 0:00:31]} Bxg6 {[%emt 0:00:15]} 41. Qe5 {[%emt 0:00:53]} Bf7 {[%emt 0:00:53]} 42. Nd3 {[%emt 0:02:33]} Nf6 {[%emt 0:00:40]} 43. Qxe8+ {[%emt 0:00:57]} Bxe8 {[%emt 0:00:04]} 44. b4 {[%emt 0:00:07]} Ng8 {[%emt 0:00:26]} 45. Kf2 {[%emt 0:00:17]} Ne7 {[%emt 0:00:09]} 46. Ke3 {[%emt 0:00:11]} Kg8 {[%emt 0:01:05]} 47. Kd4 {[%emt 0:00:20]} Kf7 {[%emt 0:00:50]} 48. Ke5 {[%emt 0:00:12]} Nc8 {[%emt 0:00:08]} 49. Nf4 {[%emt 0:01:18]} Bd7 {[%emt 0:00:50]} 50. c4 {[%emt 0:00:49]} g5 {[%emt 0:00:43]} 51. Ne2 {[%emt 0:00:29]} Be6 {[%emt 0:00:17]} 52. Kd4 {[%emt 0:01:23]} Nd6 {[%emt 0:00:35]} 53. c5 {[%emt 0:00:33]} Nf5+ {[%emt 0:00:13]} 54. Ke5 {[%emt 0:00:05]} bxc5 {[%emt 0:00:04]} 55. bxc5 {[%emt 0:00:08]} Ne3 {[%emt 0:00:50]} 56. Bxc6 {[%emt 0:00:05]} Bxa2 {[%emt 0:00:04]} 57. Bd7 {[%emt 0:00:58]} Ke7 {[%emt 0:00:43]} 58. c6 {[%emt 0:00:19]} Nc4+ {[%emt 0:00:17]} 59. Kd4 {[%emt 0:01:34]} Nb6 {[%emt 0:00:09]} 60. Nc3 {[%emt 0:00:09]} Bb3 {[%emt 0:01:20]} 61. Bg4 {[%emt 0:00:08]} Kd6 {[%emt 0:00:17]} 62. Bf3 {[%emt 0:00:12]} a6 {[%emt 0:00:32]} 63. Ne4+ {[%emt 0:01:07]} Kxc6 {[%emt 0:00:19]} 64. Nxg5+ {[%emt 0:00:10]} Bd5 {[%emt 0:00:46]} 65. h4 {[%emt 0:00:53]} Bxf3 {[%emt 0:00:13]} 66. Nxf3 {[%emt 0:00:03]} Kd6 {[%emt 0:00:14]} 67. h5 {[%emt 0:00:10]} Ke6 {[%emt 0:00:16]} 1/2-1/2

[Event "1st Cyprus Chess Tournament 2019"]
[Site "Larnaca"]
[Date "2019.10.27"]
[Round "3.2"]
[White "Cherkasov, Nikolai"]
[Black "Gleizerov, Evgeny"]
[Result "0-1"]
[ECO "A04"]
[WhiteElo "2338"]
[BlackElo "2512"]
[Annotator "ChessBase"]
[PlyCount "82"]
[EventDate "2019.10.25"]
[EventType "swiss"]
[EventCountry "CYP"]
[SourceTitle "playchess.com"]
[Source "ChessBase"]
[SourceQuality "1"]
[TimeControl "5400+30"]

1. e4 {[%emt 0:00:00]} e6 {[%emt 0:00:00]} 2. d3 {[%emt 0:02:18]} c5 {[%emt 0:00:00]} 3. Nf3 {[%emt 0:00:39]} Nc6 {[%emt 0:00:02]} 4. g3 {[%emt 0:00:44]} g6 {[%emt 0:00:30]} 5. Bg2 {[%emt 0:00:57]} Bg7 {[%emt 0:00:05]} 6. O-O {[%emt 0:02:38]} Nge7 {[%emt 0:00:20]} 7. c3 {[%emt 0:12:44]} e5 {[%emt 0:04:07]} 8. Be3 {[%emt 0:01:32]} d6 {[%emt 0:00:05]} 9. Qd2 {[%emt 0:03:28]} O-O {[%emt 0:06:18]} 10. Na3 {[%emt 0:02:44]} f5 {[%emt 0:12:22]} 11. Bh6 {[%emt 0:02:53]} f4 {[%emt 0:03:16]} 12. Bxg7 {[%emt 0:00:59]} Kxg7 {[%emt 0:00:02]} 13. d4 {[%emt 0:00:46]} cxd4 {[%emt 0:09:34]} 14. cxd4 {[%emt 0:00:11]} Bg4 {[%emt 0:01:23]} 15. Nc2 {[%emt 0:08:46]} Bxf3 {[%emt 0:04:10]} 16. Bxf3 {[%emt 0:00:10]} fxg3 {[%emt 0:00:09]} 17. fxg3 {[%emt 0:09:04]} Qb6 {[%emt 0:00:42]} 18. Kg2 {[%emt 0:02:51]} Nxd4 {[%emt 0:00:30]} 19. Nxd4 {[%emt 0:00:25]} exd4 {[%emt 0:00:40]} 20. Bg4 {[%emt 0:11:50]} Nc6 {[%emt 0:01:16]} 21. Be6 {[%emt 0:02:03]} Ne5 {[%emt 0:11:43]} 22. h3 {[%emt 0:04:59]} d3 {[%emt 0:06:20]} 23. Rf4 {[%emt 0:00:35]} Rae8 {[%emt 0:02:52]} 24. Bb3 {[%emt 0:04:08]} Qd4 {[%emt 0:06:17]} 25. Rc1 {[%emt 0:11:54]} Rc8 {[%emt 0:09:13]} 26. Rcf1 {[%emt 0:05:13]} Nc4 {[%emt 0:01:42]} 27. Bxc4 {[%emt 0:01:01]} Qxc4 {[%emt 0:02:35]} 28. R1f3 {[%emt 0:04:38]} Rxf4 {[%emt 0:02:37]} 29. Qxf4 {[%emt 0:00:42]} Qd4 {[%emt 0:06:54]} 30. Rf2 {[%emt 0:01:19]} Kh8 {[%emt 0:00:41]} 31. h4 {[%emt 0:00:28]} d5 {[%emt 0:03:53]} 32. e5 {[%emt 0:01:30]} Qe4+ {[%emt 0:01:32]} 33. Kh3 {[%emt 0:00:56]} Qxf4 {[%emt 0:00:32]} 34. gxf4 {[%emt 0:00:35]} Rc2 {[%emt 0:03:04]} 35. Rf3 {[%emt 0:00:09]} Rd2 {[%emt 0:00:18]} 36. Re3 {[%emt 0:01:13]} Kg7 {[%emt 0:00:12]} 37. Kg4 {[%emt 0:00:19]} h5+ {[%emt 0:00:56]} 38. Kf3 {[%emt 0:00:52]} Kf7 {[%emt 0:00:05]} 39. Re1 {[%emt 0:00:28]} Rxb2 {[%emt 0:00:17]} 40. Ke3 {[%emt 0:00:28]} d2 {[%emt 0:00:19]} 41. Ra1 {[%emt 0:00:36]} Rxa2 {[%emt 0:00:19]} 0-1

[Event "1st Cyprus Chess Tournament 2019"]
[Site "Larnaca"]
[Date "2019.10.27"]
[Round "3.3"]
[White "Kotronias, Vasilios"]
[Black "Terentiev, Sergei"]
[Result "1-0"]
[ECO "B41"]
[WhiteElo "2486"]
[BlackElo "2285"]
[Annotator "ChessBase"]
[PlyCount "81"]
[EventDate "2019.10.25"]
[EventType "swiss"]
[EventCountry "CYP"]
[SourceTitle "playchess.com"]
[Source "ChessBase"]
[SourceQuality "1"]
[TimeControl "5400+30"]

1. e4 {[%emt 0:00:00]} c5 {[%emt 0:00:00]} 2. Nf3 {[%emt 0:00:00]} e6 {[%emt 0:00:00]} 3. d4 {[%emt 0:00:09]} cxd4 {[%emt 0:00:00]} 4. Nxd4 {[%emt 0:00:06]} a6 {[%emt 0:00:03]} 5. c4 {[%emt 0:00:07]} Nf6 {[%emt 0:00:14]} 6. Nc3 {[%emt 0:00:07]} Bb4 {[%emt 0:00:18]} 7. Qd3 {[%emt 0:00:07]} Qc7 {[%emt 0:01:21]} 8. a3 {[%emt 0:07:44]} Be7 {[%emt 0:02:06]} 9. f4 {[%emt 0:01:04]} d6 {[%emt 0:04:03]} 10. Be2 {[%emt 0:00:12]} b6 {[%emt 0:01:22]} 11. O-O {[%emt 0:00:21]} Nbd7 {[%emt 0:00:25]} 12. b4 {[%emt 0:00:04]} Bb7 {[%emt 0:00:21]} 13. Bb2 {[%emt 0:00:18]} O-O {[%emt 0:00:11]} 14. Rac1 {[%emt 0:00:29]} Rfe8 {[%emt 0:02:03]} 15. g4 {[%emt 0:05:45]} h6 {[%emt 0:06:25]} 16. h4 {[%emt 0:03:27]} Nh7 {[%emt 0:06:25]} 17. g5 {[%emt 0:00:47]} Qd8 {[%emt 0:04:30]} 18. Qg3 {[%emt 0:31:58]} hxg5 {[%emt 0:05:05]} 19. fxg5 {[%emt 0:00:05]} g6 {[%emt 0:08:18]} 20. Nf3 {[%emt 0:07:00]} Bf8 {[%emt 0:19:49]} 21. Rcd1 {[%emt 0:00:06]} Qe7 {[%emt 0:00:39]} 22. e5 {[%emt 0:03:13]} dxe5 {[%emt 0:02:30]} 23. Nxe5 {[%emt 0:00:13]} Nxe5 {[%emt 0:00:08]} 24. Qxe5 {[%emt 0:00:05]} Bg7 {[%emt 0:02:27]} 25. Qxg7+ {[%emt 0:00:19]} Kxg7 {[%emt 0:00:07]} 26. Nd5+ {[%emt 0:00:06]} e5 {[%emt 0:00:34]} 27. Nxe7 {[%emt 0:00:06]} Rxe7 {[%emt 0:00:07]} 28. Rd6 {[%emt 0:00:12]} a5 {[%emt 0:05:41]} 29. b5 {[%emt 0:00:31]} Kf8 {[%emt 0:04:59]} 30. Rxg6 {[%emt 0:00:50]} Rd8 {[%emt 0:00:21]} 31. Bc3 {[%emt 0:00:24]} Be4 {[%emt 0:00:35]} 32. Rxb6 {[%emt 0:00:06]} Bd3 {[%emt 0:01:42]} 33. Rd1 {[%emt 0:02:42]} e4 {[%emt 0:00:21]} 34. Kf2 {[%emt 0:00:58]} Ke8 {[%emt 0:01:01]} 35. Ke3 {[%emt 0:00:45]} Rc8 {[%emt 0:02:49]} 36. Bg4 {[%emt 0:00:18]} Ra8 {[%emt 0:01:09]} 37. c5 {[%emt 0:00:29]} Nf8 {[%emt 0:00:42]} 38. c6 {[%emt 0:00:26]} Ne6 {[%emt 0:00:20]} 39. Bxe6 {[%emt 0:02:05]} Rxe6 {[%emt 0:01:21]} 40. h5 {[%emt 0:00:58]} Rd8 {[%emt 0:03:45]} 41. Bf6 {[%emt 0:01:26]} 1-0

[Event "1st Cyprus Chess Tournament 2019"]
[Site "Larnaca"]
[Date "2019.10.27"]
[Round "3.4"]
[White "Lornye, Pylyp"]
[Black "Tilicheev, Viacheslav"]
[Result "0-1"]
[ECO "A04"]
[WhiteElo "2284"]
[BlackElo "2478"]
[Annotator "ChessBase"]
[PlyCount "110"]
[EventDate "2019.10.25"]
[EventType "swiss"]
[EventCountry "CYP"]
[SourceTitle "playchess.com"]
[Source "ChessBase"]
[SourceQuality "1"]
[TimeControl "5400+30"]

1. Nf3 {[%emt 0:00:00]} e6 {[%emt 0:00:00]} 2. g3 {[%emt 0:00:52]} g5 {[%emt 0:00:00]} 3. h3 {[%emt 0:01:59]} d6 {[%emt 0:00:00]} 4. d4 {[%emt 0:00:39]} h6 {[%emt 0:00:00]} 5. Bg2 {[%emt 0:00:59]} Bg7 {[%emt 0:00:07]} 6. Nc3 {[%emt 0:02:30]} Ne7 {[%emt 0:00:14]} 7. e4 {[%emt 0:05:16]} a6 {[%emt 0:01:56]} 8. a4 {[%emt 0:03:17]} d5 {[%emt 0:05:24]} 9. O-O {[%emt 0:05:48]} Nbc6 {[%emt 0:00:34]} 10. e5 {[%emt 0:05:18]} Ng6 {[%emt 0:00:18]} 11. Ne2 {[%emt 0:04:09]} O-O {[%emt 0:00:49]} 12. c3 {[%emt 0:02:32]} f6 {[%emt 0:02:11]} 13. exf6 {[%emt 0:02:05]} Qxf6 {[%emt 0:00:33]} 14. Nh2 {[%emt 0:01:53]} e5 {[%emt 0:08:10]} 15. dxe5 {[%emt 0:06:00]} Ncxe5 {[%emt 0:00:14]} 16. f4 {[%emt 0:03:44]} gxf4 {[%emt 0:01:59]} 17. Nxf4 {[%emt 0:04:06]} Nxf4 {[%emt 0:01:38]} 18. Bxf4 {[%emt 0:07:21]} c6 {[%emt 0:03:14]} 19. Bxe5 {[%emt 0:22:06]} Qxe5 {[%emt 0:00:12]} 20. Rxf8+ {[%emt 0:00:01]} Bxf8 {[%emt 0:00:40]} 21. Qf3 {[%emt 0:00:20]} Qf5 {[%emt 0:05:42]} 22. Qe2 {[%emt 0:05:34]} Qg5 {[%emt 0:03:08]} 23. Rf1 {[%emt 0:02:57]} Qxg3 {[%emt 0:01:12]} 24. Qh5 {[%emt 0:03:17]} Qg7 {[%emt 0:02:59]} 25. Kh1 {[%emt 0:00:38]} Be6 {[%emt 0:01:02]} 26. Bf3 {[%emt 0:00:34]} Qf7 {[%emt 0:08:59]} 27. Rg1+ {[%emt 0:02:03]} Kh7 {[%emt 0:00:44]} 28. Qe5 {[%emt 0:00:58]} Bf5 {[%emt 0:06:32]} 29. Bh5 {[%emt 0:03:14]} Bd6 {[%emt 0:02:41]} 30. Qxd6 {[%emt 0:03:50]} Be4+ {[%emt 0:00:12]} 31. Nf3 {[%emt 0:00:06]} Bxf3+ {[%emt 0:00:09]} 32. Bxf3 {[%emt 0:00:05]} Qxf3+ {[%emt 0:00:04]} 33. Kh2 {[%emt 0:00:37]} Qf7 {[%emt 0:00:04]} 34. Rg2 {[%emt 0:01:21]} Re8 {[%emt 0:04:19]} 35. a5 {[%emt 0:00:08]} Re3 {[%emt 0:02:21]} 36. Qb8 {[%emt 0:00:50]} h5 {[%emt 0:05:02]} 37. Qd6 {[%emt 0:00:36]} h4 {[%emt 0:00:17]} 38. Qb8 {[%emt 0:00:32]} Re8 {[%emt 0:00:41]} 39. Qd6 {[%emt 0:00:23]} Re4 {[%emt 0:05:19]} 40. b4 {[%emt 0:00:42]} Qf4+ {[%emt 0:01:14]} 41. Qxf4 {[%emt 0:00:05]} Rxf4 {[%emt 0:00:06]} 42. Re2 {[%emt 0:00:05]} Re4 {[%emt 0:00:22]} 43. Rf2 {[%emt 0:00:08]} Kg6 {[%emt 0:00:25]} 44. Kg2 {[%emt 0:01:09]} Re3 {[%emt 0:05:42]} 45. Rf3 {[%emt 0:00:55]} Rxf3 {[%emt 0:00:32]} 46. Kxf3 {[%emt 0:00:04]} Kf5 {[%emt 0:00:02]} 47. Ke3 {[%emt 0:00:13]} Ke5 {[%emt 0:00:03]} 48. Kd3 {[%emt 0:00:08]} Kf4 {[%emt 0:00:49]} 49. Kd4 {[%emt 0:01:22]} Kg3 {[%emt 0:00:05]} 50. Kc5 {[%emt 0:00:12]} Kxh3 {[%emt 0:00:06]} 51. Kb6 {[%emt 0:00:03]} Kg4 {[%emt 0:00:16]} 52. Kxb7 {[%emt 0:00:13]} h3 {[%emt 0:00:32]} 53. Kxa6 {[%emt 0:00:12]} h2 {[%emt 0:00:06]} 54. Kb6 {[%emt 0:00:06]} h1=Q {[%emt 0:00:12]} 55. a6 {[%emt 0:00:02]} Qf1 {[%emt 0:00:48]} 0-1

[Event "1st Cyprus Chess Tournament 2019"]
[Site "Larnaca"]
[Date "2019.10.27"]
[Round "3.5"]
[White "Kazakouski, Valery"]
[Black "Biljanic, Ljubomir"]
[Result "1-0"]
[ECO "A13"]
[WhiteElo "2474"]
[BlackElo "2241"]
[Annotator "ChessBase"]
[PlyCount "61"]
[EventDate "2019.10.25"]
[EventType "swiss"]
[EventCountry "CYP"]
[SourceTitle "playchess.com"]
[Source "ChessBase"]
[SourceQuality "1"]
[TimeControl "5400+30"]

1. Nf3 {[%emt 0:00:00]} Nf6 {[%emt 0:00:00]} 2. c4 {[%emt 0:00:00]} e6 {[%emt 0:00:43]} 3. g3 {[%emt 0:00:06]} d5 {[%emt 0:00:42]} 4. Bg2 {[%emt 0:00:34]} Bd6 {[%emt 0:03:41]} 5. O-O {[%emt 0:01:41]} O-O {[%emt 0:00:32]} 6. b3 {[%emt 0:00:29]} Qe7 {[%emt 0:04:41]} 7. Bb2 {[%emt 0:05:29]} Nbd7 {[%emt 0:07:51]} 8. Nc3 {[%emt 0:06:50]} c6 {[%emt 0:05:52]} 9. Qc2 {[%emt 0:01:16]} Nb6 {[%emt 0:08:33]} 10. e4 {[%emt 0:11:23]} Ba3 {[%emt 0:10:30]} 11. e5 {[%emt 0:03:34]} Nfd7 {[%emt 0:07:48]} 12. Bxa3 {[%emt 0:01:24]} Qxa3 {[%emt 0:00:02]} 13. cxd5 {[%emt 0:00:20]} cxd5 {[%emt 0:07:25]} 14. d4 {[%emt 0:06:36]} a6 {[%emt 0:03:05]} 15. Ng5 {[%emt 0:00:46]} g6 {[%emt 0:00:16]} 16. h4 {[%emt 0:02:57]} Nb8 {[%emt 0:01:54]} 17. Nf3 {[%emt 0:15:56]} Nc6 {[%emt 0:02:35]} 18. h5 {[%emt 0:01:25]} Bd7 {[%emt 0:01:06]} 19. Qd2 {[%emt 0:01:06]} Rfc8 {[%emt 0:02:16]} 20. Rfd1 {[%emt 0:03:43]} Rc7 {[%emt 0:01:21]} 21. Nh2 {[%emt 0:01:56]} Be8 {[%emt 0:10:44]} 22. Ng4 {[%emt 0:03:53]} Nd7 {[%emt 0:01:19]} 23. hxg6 {[%emt 0:07:28]} hxg6 {[%emt 0:02:49]} 24. Bxd5 {[%emt 0:04:00]} Ne7 {[%emt 0:11:38]} 25. Be4 {[%emt 0:01:46]} Qb4 {[%emt 0:01:15]} 26. Ne2 {[%emt 0:01:44]} Qxd2 {[%emt 0:00:08]} 27. Rxd2 {[%emt 0:00:10]} Rac8 {[%emt 0:00:10]} 28. Kg2 {[%emt 0:01:49]} Kg7 {[%emt 0:00:45]} 29. Rh1 {[%emt 0:00:47]} Ng8 {[%emt 0:00:50]} 30. Nf4 {[%emt 0:01:45]} Nb6 {[%emt 0:00:18]} 31. Bxg6 {[%emt 0:01:56]} 1-0

[Event "1st Cyprus Chess Tournament 2019"]
[Site "Larnaca"]
[Date "2019.10.27"]
[Round "3.6"]
[White "Tsyn, Igor"]
[Black "Mirzoev, Azer"]
[Result "0-1"]
[ECO "B31"]
[WhiteElo "2129"]
[BlackElo "2472"]
[Annotator "ChessBase"]
[PlyCount "156"]
[EventDate "2019.10.25"]
[EventType "swiss"]
[EventCountry "CYP"]
[SourceTitle "playchess.com"]
[Source "ChessBase"]
[SourceQuality "1"]
[TimeControl "5400+30"]

1. e4 {[%emt 0:00:00]} c5 {[%emt 0:00:00]} 2. Nf3 {[%emt 0:00:00]} Nc6 {[%emt 0:00:00]} 3. Bb5 {[%emt 0:00:00]} g6 {[%emt 0:00:00]} 4. Bxc6 {[%emt 0:00:00]} bxc6 {[%emt 0:00:02]} 5. O-O {[%emt 0:00:43]} Bg7 {[%emt 0:00:04]} 6. Re1 {[%emt 0:01:09]} Nh6 {[%emt 0:00:22]} 7. c3 {[%emt 0:01:43]} O-O {[%emt 0:00:19]} 8. h3 {[%emt 0:06:38]} d6 {[%emt 0:00:57]} 9. d4 {[%emt 0:03:12]} cxd4 {[%emt 0:00:07]} 10. cxd4 {[%emt 0:01:23]} f6 {[%emt 0:00:15]} 11. Nc3 {[%emt 0:30:33]} Nf7 {[%emt 0:00:15]} 12. Qe2 {[%emt 0:00:42]} Bd7 {[%emt 0:06:30]} 13. Bf4 {[%emt 0:13:15]} e5 {[%emt 0:01:50]} 14. dxe5 {[%emt 0:02:34]} fxe5 {[%emt 0:00:09]} 15. Be3 {[%emt 0:04:06]} h6 {[%emt 0:01:21]} 16. Rad1 {[%emt 0:02:14]} Kh7 {[%emt 0:00:24]} 17. Rd2 {[%emt 0:03:21]} Be6 {[%emt 0:01:27]} 18. Red1 {[%emt 0:00:40]} Qc8 {[%emt 0:01:44]} 19. Rc1 {[%emt 0:10:02]} Qb7 {[%emt 0:00:51]} 20. b3 {[%emt 0:03:29]} Rfd8 {[%emt 0:00:47]} 21. Na4 {[%emt 0:01:43]} Rac8 {[%emt 0:00:43]} 22. Rdc2 {[%emt 0:00:53]} Rd7 {[%emt 0:01:18]} 23. Nd2 {[%emt 0:01:47]} c5 {[%emt 0:00:55]} 24. f3 {[%emt 0:03:07]} Nd8 {[%emt 0:00:33]} 25. Rc3 {[%emt 0:03:25]} Nc6 {[%emt 0:01:38]} 26. Kh2 {[%emt 0:00:08]} Nd4 {[%emt 0:00:39]} 27. Qd3 {[%emt 0:00:14]} Rf8 {[%emt 0:03:35]} 28. Rf1 {[%emt 0:01:16]} Rdf7 {[%emt 0:01:32]} 29. Rf2 {[%emt 0:02:18]} h5 {[%emt 0:00:19]} 30. Nb2 {[%emt 0:00:23]} Bh6 {[%emt 0:01:01]} 31. Bxh6 {[%emt 0:00:41]} Kxh6 {[%emt 0:00:09]} 32. Qe3+ {[%emt 0:01:05]} Kg7 {[%emt 0:00:22]} 33. Qg5 {[%emt 0:00:53]} Qe7 {[%emt 0:04:34]} 34. Qxe7 {[%emt 0:00:46]} Rxe7 {[%emt 0:00:06]} 35. Nd3 {[%emt 0:00:42]} g5 {[%emt 0:03:26]} 36. Nc4 {[%emt 0:01:18]} Rd7 {[%emt 0:00:14]} 37. Kg3 {[%emt 0:00:40]} h4+ {[%emt 0:00:46]} 38. Kh2 {[%emt 0:00:02]} Kf6 {[%emt 0:00:57]} 39. Ne3 {[%emt 0:00:52]} Rb8 {[%emt 0:01:09]} 40. Nc4 {[%emt 0:01:00]} Ke7 {[%emt 0:00:52]} 41. Ndb2 {[%emt 0:00:21]} a5 {[%emt 0:02:41]} 42. Na4 {[%emt 0:00:36]} Ra7 {[%emt 0:00:25]} 43. Ne3 {[%emt 0:00:32]} Bd7 {[%emt 0:02:41]} 44. Nb6 {[%emt 0:00:39]} Be6 {[%emt 0:01:11]} 45. Nbd5+ {[%emt 0:00:30]} Kf7 {[%emt 0:00:46]} 46. Rc4 {[%emt 0:00:25]} Bd7 {[%emt 0:01:11]} 47. Rb2 {[%emt 0:00:37]} Rab7 {[%emt 0:01:36]} 48. Rc1 {[%emt 0:00:46]} a4 {[%emt 0:01:54]} 49. Nc4 {[%emt 0:00:05]} Ke6 {[%emt 0:00:10]} 50. Na5 {[%emt 0:00:43]} Ra7 {[%emt 0:00:40]} 51. Nc4 {[%emt 0:00:30]} axb3 {[%emt 0:03:37]} 52. axb3 {[%emt 0:00:01]} Bc6 {[%emt 0:01:06]} 53. Nde3 {[%emt 0:01:01]} Rxb3 {[%emt 0:04:09]} 54. Rxb3 {[%emt 0:00:03]} Nxb3 {[%emt 0:00:07]} 55. Rb1 {[%emt 0:00:17]} Nd4 {[%emt 0:00:05]} 56. Rb6 {[%emt 0:01:11]} Ra2 {[%emt 0:02:16]} 57. Kg1 {[%emt 0:00:03]} Kd7 {[%emt 0:01:03]} 58. Rb8 {[%emt 0:00:36]} Ne2+ {[%emt 0:04:51]} 59. Kf2 {[%emt 0:00:30]} Nf4+ {[%emt 0:00:35]} 60. Kg1 {[%emt 0:00:26]} Kc7 {[%emt 0:01:48]} 61. Rg8 {[%emt 0:00:46]} Bb5 {[%emt 0:02:16]} 62. Rxg5 {[%emt 0:00:44]} Ra4 {[%emt 0:00:53]} 63. Nd2 {[%emt 0:00:33]} c4 {[%emt 0:01:30]} 64. Rg4 {[%emt 0:00:28]} c3 {[%emt 0:02:15]} 65. Rxf4 {[%emt 0:00:30]} cxd2 {[%emt 0:00:37]} 66. Rf7+ {[%emt 0:00:09]} Kc6 {[%emt 0:01:24]} 67. Kf2 {[%emt 0:00:35]} Ra1 {[%emt 0:01:03]} 68. Nd5 {[%emt 0:00:20]} d1=N+ {[%emt 0:01:50]} 69. Kg1 {[%emt 0:00:46]} Ne3+ {[%emt 0:00:21]} 70. Kf2 {[%emt 0:00:22]} Ra2+ {[%emt 0:01:19]} 71. Kg1 {[%emt 0:00:44]} Nxd5 {[%emt 0:00:08]} 72. exd5+ {[%emt 0:00:04]} Kxd5 {[%emt 0:00:05]} 73. Rh7 {[%emt 0:00:47]} Ra4 {[%emt 0:00:06]} 74. g3 {[%emt 0:00:46]} Ra1+ {[%emt 0:00:19]} 75. Kf2 {[%emt 0:00:16]} Ra2+ {[%emt 0:00:04]} 76. Kg1 {[%emt 0:00:04]} hxg3 {[%emt 0:00:07]} 77. h4 {[%emt 0:00:04]} Rh2 {[%emt 0:00:29]} 78. h5 {[%emt 0:00:09]} Be2 {[%emt 0:00:44]} 0-1